fUSD/lending_fUSD_20260219
["ID","MTS","AMOUNT","RATE_DAILY","PERIOD"]
[405980795,1771491256519,-379.73,0.00044544,120]
[405980796,1771491256565,-2100.0,0.00044544,120]
[405980797,1771491256597,-1888.0,0.00044544,120]
[405980798,1771491256626,-2858.0,0.00044544,120]
[405980799,1771491256657,-1685.0,0.00044544,120]
[405980800,1771491256689,-158.51762,0.00044544,60]
[405980801,1771491256716,-158.51762,0.00044544,60]
[405980802,1771491256746,-158.51762,0.00044544,60]
[405980803,1771491256775,-158.51762,0.00044544,60]
[405980804,1771491256803,-519754.37579524,0.00044544,120]
[405980805,1771491256835,-360513.65070157,0.00044544,120]
[405980806,1771491256863,-5000.0,0.00044544,30]
[405980807,1771491256893,-228.0,0.00044544,30]
[405980808,1771491257056,-2461.976415,0.00044544,120]
[405980809,1771491257080,-167.63585311,0.00044544,120]
[405980810,1771491257106,-244.31777591,0.00044544,60]
[405980811,1771491257131,-285.58516363,0.00044544,120]
[405980812,1771491257155,-3001.0,0.00044544,120]
[405980813,1771491257180,-14488.0,0.00044544,30]
[405980814,1771491257205,-500.0,0.00044544,120]
[405980815,1771491257231,-6667.38841635,0.00044544,120]
[405980816,1771491257256,-283.82,0.00044544,120]
[405980817,1771491257279,-1553.72276362,0.00044544,120]
[405980818,1771491257304,-560.72133985,0.00044544,120]
[405980819,1771491257328,-530.66005475,0.00044544,120]
[405980820,1771491257352,-1399.433,0.00044544,120]
[405980821,1771491257375,-1710.12,0.00044544,120]
[405980822,1771491257398,-294.27496627,0.00044544,30]
[405980823,1771491257421,-295.13813806,0.00044544,60]
[405980824,1771491257444,-153.40138866,0.00044544,30]
[405980825,1771491257468,-392.05649134,0.00044544,120]
[405980826,1771491257490,-160.32635745,0.00044544,60]
[405980827,1771491257513,-736.01350625,0.00044544,60]
[405980828,1771491257535,-4446.92109783,0.00044544,30]
[405980829,1771491257558,-1013.94610499,0.00044544,30]
[405980830,1771491257580,-510.85949477,0.00044544,60]
[405980831,1771491257603,-325.0,0.00044544,120]
[405980832,1771491257625,-337.8360856,0.00044544,120]
[405980833,1771491257646,-150.0,0.00044544,120]
[405980834,1771491257670,-287.01550654,0.00044544,120]
[405980835,1771491257692,-1519.91642652,0.00044544,30]
[405980836,1771491257716,-20224.88331757,0.00044544,120]
[405980837,1771491257739,-2000.0,0.00044544,120]
[405980838,1771491257762,-2000.0,0.00044544,120]
[405980839,1771491257786,-1536.0,0.00044544,30]
[405980840,1771491257809,-2531.8306317,0.00044544,30]
[405980841,1771491257834,-378.0,0.00044544,120]
[405980842,1771491257857,-11653.99,0.00044544,30]
[405980843,1771491257883,-4999.999999,0.00044544,32]
[405980844,1771491257907,-321.14595781,0.00044544,120]
[405980845,1771491257932,-1002.46850843,0.00044544,120]
[405980846,1771491257955,-931.60399681,0.00044544,120]
[405980847,1771491257977,-230.4181823,0.00044544,30]
[405980848,1771491257999,-780.7128528,0.00044544,120]
[405980849,1771491258023,-547.76060927,0.00044544,120]
[405980850,1771491258047,-500.0,0.00044544,30]
[405980851,1771491258072,-1073.26852278,0.00044544,120]
[405980852,1771491258095,-45041.22,0.00044544,120]
[405980853,1771491258119,-3000.0,0.00044544,30]
[405980854,1771491258144,-277.48862533,0.00044544,31]
[405980855,1771491258167,-1344.3816254,0.00044544,120]
[405980856,1771491258190,-150.0,0.00044544,30]
[405980857,1771491258215,-1316.84433793,0.00044544,120]
[405980858,1771491258238,-150.0,0.00044544,30]
[405980859,1771491258260,-559.65,0.00044544,30]
[405980860,1771491258282,-181.03,0.00044544,30]
[405980861,1771491258305,-471.58,0.00044544,30]
[405980862,1771491258328,-201.47,0.00044544,30]
[405980863,1771491258351,-150.0,0.00044544,30]
[405980864,1771491258374,-562.33,0.00044544,30]
[405980865,1771491258397,-476.49,0.00044544,30]
[405980866,1771491258420,-150.0,0.00044544,30]
[405980867,1771491258443,-562.33,0.00044544,30]
[405980868,1771491258466,-150.0,0.00044544,30]
[405980869,1771491258489,-274.57,0.00044544,30]
[405980870,1771491258512,-181.03,0.00044544,30]
[405980871,1771491258536,-197.21,0.00044544,30]
[405980872,1771491258558,-471.58,0.00044544,30]
[405980873,1771491258582,-560.22,0.00044544,30]
[405980874,1771491258607,-562.33,0.00044544,30]
[405980875,1771491258630,-150.0,0.00044544,30]
[405980876,1771491258654,-476.44,0.00044544,30]
[405980877,1771491258676,-181.03,0.00044544,30]
[405980878,1771491258699,-150.0,0.00044544,30]
[405980879,1771491258723,-181.03,0.00044544,30]
[405980880,1771491258748,-150.0,0.00044544,30]
[405980881,1771491258771,-562.26,0.00044544,30]
[405980882,1771491258794,-476.23,0.00044544,30]
[405980883,1771491258817,-201.5,0.00044544,30]
[405980884,1771491258841,-562.37,0.00044544,30]
[405980885,1771491258865,-181.03,0.00044544,30]
[405980886,1771491258889,-150.0,0.00044544,30]
[405980887,1771491258913,-150.0,0.00044544,30]
[405980888,1771491258937,-476.08,0.00044544,30]
[405980889,1771491258961,-471.58,0.00044544,30]
[405980890,1771491258984,-562.33,0.00044544,30]
[405980891,1771491259009,-1240.7,0.00044544,30]
[405980892,1771491259033,-150.0,0.00044544,30]
[405980893,1771491259058,-150.0,0.00044544,30]
[405980894,1771491259082,-560.22,0.00044544,30]
[405980895,1771491259106,-150.66,0.00044544,30]
[405980896,1771491259131,-201.47,0.00044544,30]
[405980897,1771491259155,-181.0,0.00044544,30]
[405980898,1771491259179,-150.0,0.00044544,30]
[405980899,1771491259201,-151.19,0.00044544,30]
[405980900,1771491259224,-201.42,0.00044544,30]
[405980901,1771491259248,-564.83,0.00044544,30]
[405980902,1771491259271,-471.58,0.00044544,30]
[405980903,1771491259294,-476.49,0.00044544,30]
[405980904,1771491259318,-295.34,0.00044544,30]
[405980905,1771491259342,-562.2,0.00044544,30]
[405980906,1771491259364,-150.0,0.00044544,30]
[405980907,1771491259387,-562.33,0.00044544,30]
[405980908,1771491259411,-476.49,0.00044544,30]
[405980909,1771491259434,-201.43,0.00044544,30]
[405980910,1771491259457,-471.58,0.00044544,30]
[405980911,1771491259480,-560.22,0.00044544,30]
[405980912,1771491259504,-181.0,0.00044544,30]
[405980913,1771491259648,-150.5,0.00044544,30]
[405980914,1771491259673,-150.45,0.00044544,30]
[405980915,1771491259697,-476.49,0.00044544,30]
[405980916,1771491259721,-150.0,0.00044544,30]
[405980917,1771491259747,-562.46,0.00044544,30]
[405980918,1771491259770,-200.88,0.00044544,30]
[405980919,1771491259793,-150.0,0.00044544,30]
[405980920,1771491259816,-471.58,0.00044544,30]
[405980921,1771491259838,-150.0,0.00044544,30]
[405980922,1771491259862,-150.0,0.00044544,30]
[405980923,1771491259886,-180.9,0.00044544,30]
[405980924,1771491259912,-559.21,0.00044544,30]
[405980925,1771491259937,-150.0,0.00044544,30]
[405980926,1771491259960,-561.86,0.00044544,30]
[405980927,1771491259986,-471.58,0.00044544,30]
[405980928,1771491260009,-476.39,0.00044544,30]
[405980929,1771491260032,-201.47,0.00044544,30]
[405980930,1771491260056,-150.0,0.00044544,30]
[405980931,1771491260082,-181.06,0.00044544,30]
[405980932,1771491260104,-560.22,0.00044544,30]
[405980933,1771491260127,-404.25,0.00044544,30]
[405980934,1771491260152,-476.49,0.00044544,30]
[405980935,1771491260176,-150.0,0.00044544,30]
[405980936,1771491260199,-181.03,0.00044544,30]
[405980937,1771491260223,-560.34,0.00044544,30]
[405980938,1771491260249,-471.69,0.00044544,30]
[405980939,1771491260272,-175.63,0.00044544,30]
[405980940,1771491260296,-471.69,0.00044544,30]
[405980941,1771491260320,-201.47,0.00044544,30]
[405980942,1771491260343,-559.99,0.00044544,30]
[405980943,1771491260366,-560.1,0.00044544,30]
[405980944,1771491260388,-181.03,0.00044544,30]
[405980945,1771491260412,-476.51,0.00044544,30]
[405980946,1771491260435,-150.0,0.00044544,30]
[405980947,1771491260458,-562.33,0.00044544,30]
[405980948,1771491260484,-150.0,0.00044544,30]
[405980949,1771491260507,-476.49,0.00044544,30]
[405980950,1771491260530,-471.47,0.00044544,30]
[405980951,1771491260554,-201.47,0.00044544,30]
[405980952,1771491260577,-560.34,0.00044544,30]
[405980953,1771491260601,-150.0,0.00044544,30]
[405980954,1771491260625,-150.0,0.00044544,30]
[405980955,1771491260649,-180.88,0.00044544,30]
[405980956,1771491260673,-562.46,0.00044544,30]
[405980957,1771491260699,-201.47,0.00044544,30]
[405980958,1771491260723,-476.59,0.00044544,30]
[405980959,1771491260749,-181.03,0.00044544,30]
[405980960,1771491260774,-471.42,0.00044544,30]
[405980961,1771491260799,-150.4,0.00044544,30]
[405980962,1771491260824,-560.22,0.00044544,30]
[405980963,1771491260847,-562.33,0.00044544,30]
[405980964,1771491260870,-471.59,0.00044544,30]
[405980965,1771491260893,-476.49,0.00044544,30]
[405980966,1771491260917,-181.03,0.00044544,30]
[405980967,1771491260940,-559.32,0.00044544,30]
[405980968,1771491260963,-201.47,0.00044544,30]
[405980969,1771491260986,-545.82,0.00044544,30]
[405980970,1771491261011,-181.03,0.00044544,30]
[405980971,1771491261034,-399.63,0.00044544,30]
[405980972,1771491261060,-476.49,0.00044544,30]
[405980973,1771491261083,-201.48,0.00044544,30]
[405980974,1771491261105,-560.09,0.00044544,30]
[405980975,1771491261131,-182.3,0.00044544,30]
[405980976,1771491261155,-471.58,0.00044544,30]
[405980977,1771491261179,-562.46,0.00044544,30]
[405980978,1771491261202,-150.0,0.00044544,30]
[405980979,1771491261226,-570.78,0.00044544,30]
[405980980,1771491261249,-1239.37,0.00044544,30]
[405980981,1771491261273,-201.52,0.00044544,30]
[405980982,1771491261298,-326.91,0.00044544,30]
[405980983,1771491261324,-150.0,0.00044544,30]
[405980984,1771491261348,-150.0,0.00044544,30]
[405980985,1771491261370,-150.0,0.00044544,30]
[405980986,1771491261395,-1277.78,0.00044544,30]
[405980987,1771491261418,-476.49,0.00044544,30]
[405980988,1771491261441,-205.42,0.00044544,30]
[405980989,1771491261465,-560.22,0.00044544,30]
[405980990,1771491261488,-561.98,0.00044544,30]
[405980991,1771491261512,-181.03,0.00044544,30]
[405980992,1771491261535,-471.58,0.00044544,30]
[405980993,1771491261557,-181.06,0.00044544,30]
[405980994,1771491261581,-476.49,0.00044544,30]
[405980995,1771491261604,-471.69,0.00044544,30]
[405980996,1771491261627,-201.52,0.00044544,30]
[405980997,1771491261651,-560.34,0.00044544,30]
[405980998,1771491261674,-562.33,0.00044544,30]
[405980999,1771491261699,-471.58,0.00044544,30]
[405981000,1771491261723,-560.22,0.00044544,30]
[405981001,1771491261746,-485.31,0.00044544,30]
[405981002,1771491261770,-181.03,0.00044544,30]
[405981003,1771491261794,-201.47,0.00044544,30]
[405981004,1771491261816,-562.33,0.00044544,30]
[405981005,1771491261840,-565.86,0.00044544,30]
[405981006,1771491261862,-201.52,0.00044544,30]
[405981007,1771491261884,-150.0,0.00044544,30]
[405981008,1771491261909,-181.03,0.00044544,30]
[405981009,1771491261931,-150.0,0.00044544,30]
[405981010,1771491261954,-471.58,0.00044544,30]
[405981011,1771491261977,-560.34,0.00044544,30]
[405981012,1771491262000,-476.49,0.00044544,30]
[405981013,1771491262022,-181.03,0.00044544,30]
[405981014,1771491262045,-471.58,0.00044544,30]
[405981015,1771491262072,-201.47,0.00044544,30]
[405981016,1771491262098,-151.44,0.00044544,30]
[405981017,1771491262254,-560.22,0.00044544,30]
[405981018,1771491262278,-476.49,0.00044544,30]
[405981019,1771491262301,-562.46,0.00044544,30]
[405981020,1771491262324,-476.59,0.00044544,30]
[405981021,1771491262346,-562.33,0.00044544,30]
[405981022,1771491262370,-181.03,0.00044544,30]
[405981023,1771491262395,-471.58,0.00044544,30]
[405981024,1771491262419,-560.22,0.00044544,30]
[405981025,1771491262443,-201.47,0.00044544,30]
[405981026,1771491262467,-201.47,0.00044544,30]
[405981027,1771491262492,-560.34,0.00044544,30]
[405981028,1771491262516,-562.33,0.00044544,30]
[405981029,1771491262540,-471.58,0.00044544,30]
[405981030,1771491262562,-476.49,0.00044544,30]
[405981031,1771491262585,-181.06,0.00044544,30]
[405981032,1771491262608,-181.03,0.00044544,30]
[405981033,1771491262631,-150.0,0.00044544,30]
[405981034,1771491262655,-476.49,0.00044544,30]
[405981035,1771491262679,-471.25,0.00044544,30]
[405981036,1771491262704,-562.46,0.00044544,30]
[405981037,1771491262729,-150.0,0.00044544,30]
[405981038,1771491262753,-150.72,0.00044544,30]
[405981039,1771491262776,-150.0,0.00044544,30]
[405981040,1771491262799,-560.34,0.00044544,30]
[405981041,1771491262823,-201.47,0.00044544,30]
[405981042,1771491262846,-471.58,0.00044544,30]
[405981043,1771491262868,-180.95,0.00044544,30]
[405981044,1771491262891,-476.39,0.00044544,30]
[405981045,1771491262914,-202.98,0.00044544,30]
[405981046,1771491262937,-150.0,0.00044544,30]
[405981047,1771491262959,-562.33,0.00044544,30]
[405981048,1771491262982,-560.22,0.00044544,30]
[405981049,1771491263005,-1105.0,0.00044544,30]
[405981050,1771491263028,-1105.0,0.00044544,30]
[405981051,1771491263053,-1105.0,0.00044544,30]
[405981052,1771491263081,-1105.0,0.00044544,30]
[405981053,1771491263105,-1105.0,0.00044544,30]
[405981054,1771491263128,-1105.0,0.00044544,30]
[405981055,1771491263155,-562.33,0.00044544,30]
[405981056,1771491263178,-180.88,0.00044544,30]
[405981057,1771491263201,-476.39,0.00044544,30]
[405981058,1771491263225,-560.22,0.00044544,30]
[405981059,1771491263248,-150.0,0.00044544,30]
[405981060,1771491263272,-475.31,0.00044544,30]
[405981061,1771491263295,-316.96,0.00044544,30]
[405981062,1771491263319,-1105.0,0.00044544,30]
[405981063,1771491263343,-1105.0,0.00044544,30]
[405981064,1771491263370,-1105.0,0.00044544,30]
[405981065,1771491263396,-1105.0,0.00044544,30]
[405981066,1771491263421,-1105.0,0.00044544,30]
[405981067,1771491263446,-1105.0,0.00044544,30]
[405981068,1771491263471,-562.33,0.00044544,30]
[405981069,1771491263495,-181.03,0.00044544,30]
[405981070,1771491263519,-471.58,0.00044544,30]
[405981071,1771491263543,-560.24,0.00044544,30]
[405981072,1771491263567,-475.55,0.00044544,30]
[405981073,1771491263591,-1105.0,0.00044544,30]
[405981074,1771491263616,-201.52,0.00044544,30]
[405981075,1771491263640,-1105.0,0.00044544,30]
[405981076,1771491263664,-1105.0,0.00044544,30]
[405981077,1771491263687,-1105.0,0.00044544,30]
[405981078,1771491263711,-1105.0,0.00044544,30]
[405981079,1771491263740,-1105.0,0.00044544,30]
[405981080,1771491263764,-150.0,0.00044544,30]
[405981081,1771491263789,-471.59,0.00044544,30]
[405981082,1771491263814,-201.47,0.00044544,30]
[405981083,1771491263839,-562.33,0.00044544,30]
[405981084,1771491263863,-150.0,0.00044544,30]
[405981085,1771491263887,-560.1,0.00044544,30]
[405981086,1771491263911,-476.35,0.00044544,30]
[405981087,1771491263934,-150.0,0.00044544,30]
[405981088,1771491263964,-180.86,0.00044544,30]
[405981089,1771491263988,-1105.0,0.00044544,30]
[405981090,1771491264014,-150.6,0.00044544,30]
[405981091,1771491264040,-150.0,0.00044544,30]
[405981092,1771491264067,-1105.0,0.00044544,30]
[405981093,1771491264092,-1105.0,0.00044544,30]
[405981094,1771491264118,-1105.0,0.00044544,30]
[405981095,1771491264143,-1107.45029606,0.00044544,30]
[405981096,1771491264168,-560.22,0.00044544,30]
[405981097,1771491264193,-181.02,0.00044544,30]
[405981098,1771491264218,-150.0,0.00044544,30]
[405981099,1771491264243,-476.49,0.00044544,30]
[405981100,1771491264268,-561.77,0.00044544,30]
[405981101,1771491264294,-201.47,0.00044544,30]
[405981102,1771491264318,-150.0,0.00044544,30]
[405981103,1771491264342,-157.91,0.00044544,30]
[405981104,1771491264366,-471.58,0.00044544,30]
[405981105,1771491264394,-560.22,0.00044544,30]
[405981106,1771491264419,-476.49,0.00044544,30]
[405981107,1771491264444,-181.06,0.00044544,30]
[405981108,1771491264467,-562.33,0.00044544,30]
[405981109,1771491264492,-471.58,0.00044544,30]
[405981110,1771491264516,-476.49,0.00044544,30]
[405981111,1771491264541,-560.22,0.00044544,30]
[405981112,1771491264565,-181.03,0.00044544,30]
[405981113,1771491264589,-150.0,0.00044544,30]
[405981114,1771491264614,-476.49,0.00044544,30]
[405981115,1771491264643,-471.57,0.00044544,30]
[405981116,1771491264669,-201.44,0.00044544,30]
[405981117,1771491264692,-150.0,0.00044544,30]
[405981118,1771491264716,-560.1,0.00044544,30]
[405981119,1771491264739,-181.06,0.00044544,30]
[405981120,1771491264764,-1239.0,0.00044544,30]
[405981121,1771491264788,-562.33,0.00044544,30]
[405981122,1771491264960,-476.59,0.00044544,30]
[405981123,1771491264990,-201.47,0.00044544,30]
[405981124,1771491265015,-181.03,0.00044544,30]
[405981125,1771491265040,-560.22,0.00044544,30]
[405981126,1771491265067,-471.58,0.00044544,30]
[405981127,1771491265090,-181.03,0.00044544,30]
[405981128,1771491265115,-476.49,0.00044544,30]
[405981129,1771491265140,-471.69,0.00044544,30]
[405981130,1771491265164,-201.47,0.00044544,30]
[405981131,1771491265188,-288.31,0.00044544,30]
[405981132,1771491265212,-471.58,0.00044544,30]
[405981133,1771491265237,-560.34,0.00044544,30]
[405981134,1771491265261,-476.39,0.00044544,30]
[405981135,1771491265287,-201.42,0.00044544,30]
[405981136,1771491265311,-181.03,0.00044544,30]
[405981137,1771491265335,-201.47,0.00044544,30]
[405981138,1771491265361,-471.48,0.00044544,30]
[405981139,1771491265386,-150.0,0.00044544,30]
[405981140,1771491265411,-1274.17,0.00044544,30]
[405981141,1771491265435,-181.03,0.00044544,30]
[405981142,1771491265460,-560.22,0.00044544,30]
[405981143,1771491265484,-476.49,0.00044544,30]
[405981144,1771491265507,-162.09,0.00044544,30]
[405981145,1771491265531,-188.62,0.00044544,30]
[405981146,1771491265555,-151.53,0.00044544,30]
[405981147,1771491265580,-562.33,0.00044544,30]
[405981148,1771491265603,-150.07,0.00044544,30]
[405981149,1771491265627,-181.03,0.00044544,30]
[405981150,1771491265651,-150.0,0.00044544,30]
[405981151,1771491265676,-562.33,0.00044544,30]
[405981152,1771491265701,-471.58,0.00044544,30]
[405981153,1771491265727,-201.47,0.00044544,30]
[405981154,1771491265752,-560.22,0.00044544,30]
[405981155,1771491265777,-476.49,0.00044544,30]
[405981156,1771491265804,-562.33,0.00044544,30]
[405981157,1771491265828,-476.59,0.00044544,30]
[405981158,1771491265854,-560.22,0.00044544,30]
[405981159,1771491265878,-201.47,0.00044544,30]
[405981160,1771491265902,-181.06,0.00044544,30]
[405981161,1771491265926,-471.58,0.00044544,30]
[405981162,1771491265951,-178.49,0.00044544,30]
[405981163,1771491265976,-562.33,0.00044544,30]
[405981164,1771491266000,-471.58,0.00044544,30]
[405981165,1771491266025,-476.37,0.00044544,30]
[405981166,1771491266049,-173.86,0.00044544,30]
[405981167,1771491266077,-150.0,0.00044544,30]
[405981168,1771491266101,-471.58,0.00044544,30]
[405981169,1771491266126,-476.49,0.00044544,30]
[405981170,1771491266151,-560.05,0.00044544,30]
[405981171,1771491266175,-150.0,0.00044544,30]
[405981172,1771491266201,-150.06,0.00044544,30]
[405981173,1771491266224,-150.0,0.00044544,30]
[405981174,1771491266249,-201.47,0.00044544,30]
[405981175,1771491266273,-562.33,0.00044544,30]
[405981176,1771491266297,-471.58,0.00044544,30]
[405981177,1771491266321,-476.49,0.00044544,30]
[405981178,1771491266345,-562.24,0.00044544,30]
[405981179,1771491266370,-201.47,0.00044544,30]
[405981180,1771491266394,-560.22,0.00044544,30]
[405981181,1771491266419,-207.18,0.00044544,30]
[405981182,1771491266444,-242.13,0.00044544,30]
[405981183,1771491266470,-201.47,0.00044544,30]
[405981184,1771491266495,-181.03,0.00044544,30]
[405981185,1771491266519,-471.58,0.00044544,30]
[405981186,1771491266543,-560.22,0.00044544,30]
[405981187,1771491266567,-476.49,0.00044544,30]
[405981188,1771491266591,-562.33,0.00044544,30]
[405981189,1771491266615,-181.03,0.00044544,30]
[405981190,1771491266640,-420.07,0.00044544,30]
[405981191,1771491266664,-559.83,0.00044544,30]
[405981192,1771491266688,-562.33,0.00044544,30]
[405981193,1771491266712,-150.0,0.00044544,30]
[405981194,1771491266736,-150.0,0.00044544,30]
[405981195,1771491266759,-201.44,0.00044544,30]
[405981196,1771491266782,-172.38,0.00044544,30]
[405981197,1771491266806,-560.22,0.00044544,30]
[405981198,1771491266831,-150.0,0.00044544,30]
[405981199,1771491266856,-471.58,0.00044544,30]
[405981200,1771491266880,-476.49,0.00044544,30]
[405981201,1771491266903,-150.0,0.00044544,30]
[405981202,1771491266927,-150.0,0.00044544,30]
[405981203,1771491266954,-181.03,0.00044544,30]
[405981204,1771491266977,-150.0,0.00044544,30]
[405981205,1771491267000,-150.0,0.00044544,30]
[405981206,1771491267023,-227.0,0.00044544,120]
[405981207,1771491267046,-227.0,0.00044544,120]
[405981208,1771491267071,-227.0,0.00044544,120]
[405981209,1771491267095,-227.0,0.00044544,120]
[405981210,1771491267122,-227.0,0.00044544,120]
[405981211,1771491267148,-227.0,0.00044544,120]
[405981212,1771491267172,-227.0,0.00044544,120]
[405981213,1771491267196,-562.33,0.00044544,30]
[405981214,1771491267221,-181.03,0.00044544,30]
[405981215,1771491267244,-150.0,0.00044544,30]
[405981216,1771491267269,-150.0,0.00044544,30]
[405981217,1771491267292,-319.59,0.00044544,30]
[405981218,1771491267316,-150.0,0.00044544,30]
[405981219,1771491267340,-476.49,0.00044544,30]
[405981220,1771491267363,-150.0,0.00044544,30]
[405981221,1771491267387,-471.58,0.00044544,30]
[405981222,1771491267410,-560.22,0.00044544,30]
[405981223,1771491267433,-150.0,0.00044544,30]
[405981224,1771491267457,-150.0,0.00044544,30]
[405981225,1771491267481,-227.0,0.00044544,120]
[405981226,1771491267506,-227.0,0.00044544,120]
[405981227,1771491267656,-227.0,0.00044544,120]
[405981228,1771491267682,-227.0,0.00044544,120]
[405981229,1771491267709,-227.0,0.00044544,120]
[405981230,1771491267733,-227.0,0.00044544,120]
[405981231,1771491267757,-387.486937,0.00044544,120]
[405981232,1771491267781,-150.0,0.00044544,30]
[405981233,1771491267805,-201.29,0.00044544,30]
[405981234,1771491267830,-471.58,0.00044544,30]
[405981235,1771491267853,-150.65,0.00044544,30]
[405981236,1771491267878,-180.68,0.00044544,30]
[405981237,1771491267902,-150.0,0.00044544,30]
[405981238,1771491267925,-560.22,0.00044544,30]
[405981239,1771491267950,-150.0,0.00044544,30]
[405981240,1771491267975,-150.0,0.00044544,30]
[405981241,1771491268000,-471.58,0.00044544,30]
[405981242,1771491268024,-560.22,0.00044544,30]
[405981243,1771491268048,-201.47,0.00044544,30]
[405981244,1771491268076,-181.03,0.00044544,30]
[405981245,1771491268100,-1447.0,0.00044544,30]
[405981246,1771491268126,-150.0,0.00044544,30]
[405981247,1771491268151,-181.03,0.00044544,30]
[405981248,1771491268176,-150.0,0.00044544,30]
[405981249,1771491268201,-476.49,0.00044544,30]
[405981250,1771491268224,-150.0,0.00044544,30]
[405981251,1771491268247,-559.81,0.00044544,30]
[405981252,1771491268270,-568.3,0.00044544,30]
[405981253,1771491268293,-150.0,0.00044544,30]
[405981254,1771491268317,-150.0,0.00044544,30]
[405981255,1771491268342,-471.58,0.00044544,30]
[405981256,1771491268366,-150.0,0.00044544,30]
[405981257,1771491268391,-201.14,0.00044544,30]
[405981258,1771491268415,-476.49,0.00044544,30]
[405981259,1771491268439,-150.0,0.00044544,30]
[405981260,1771491268464,-150.0,0.00044544,30]
[405981261,1771491268487,-150.0,0.00044544,30]
[405981262,1771491268510,-207.33,0.00044544,30]
[405981263,1771491268538,-470.84,0.00044544,30]
[405981264,1771491268560,-562.33,0.00044544,30]
[405981265,1771491268583,-150.0,0.00044544,30]
[405981266,1771491268607,-181.03,0.00044544,30]
[405981267,1771491268630,-201.47,0.00044544,30]
[405981268,1771491268654,-150.0,0.00044544,30]
[405981269,1771491268678,-150.0,0.00044544,30]
[405981270,1771491268703,-150.0,0.00044544,30]
[405981271,1771491268726,-463.54,0.00044544,30]
[405981272,1771491268750,-559.59,0.00044544,30]
[405981273,1771491268773,-562.33,0.00044544,30]
[405981274,1771491268797,-150.0,0.00044544,30]
[405981275,1771491268820,-181.03,0.00044544,30]
[405981276,1771491268843,-150.0,0.00044544,30]
[405981277,1771491268866,-150.0,0.00044544,30]
[405981278,1771491268889,-150.0,0.00044544,30]
[405981279,1771491268913,-476.18,0.00044544,30]
[405981280,1771491268937,-150.0,0.00044544,30]
[405981281,1771491268960,-150.0,0.00044544,30]
[405981282,1771491268984,-150.0,0.00044544,30]
[405981283,1771491269007,-471.58,0.00044544,30]
[405981284,1771491269030,-560.22,0.00044544,30]
[405981285,1771491269054,-181.03,0.00044544,30]
[405981286,1771491269082,-181.03,0.00044544,30]
[405981287,1771491269106,-150.0,0.00044544,30]
[405981288,1771491269131,-150.0,0.00044544,30]
[405981289,1771491269157,-187.18,0.00044544,30]
[405981290,1771491269181,-260.32,0.00044544,30]
[405981291,1771491269206,-560.22,0.00044544,30]
[405981292,1771491269229,-150.0,0.00044544,30]
[405981293,1771491269260,-471.46,0.00044544,30]
[405981294,1771491269290,-476.49,0.00044544,30]